bitfinex-derivatives/quotes_ETHF0:USTF0_20251118
["timestamp","ask_amount","ask_price","bid_price","bid_amount"]
[1763424001708,0.152,3033.0,3032.4,3.2078]
[1763424002304,3.5941,3032.5,3032.4,0.00270599]
[1763424002505,3.5941,3032.5,3031.0,0.1379]
[1763424002506,0.2343,3031.7,3031.6,3.2078]
[1763424002903,0.2343,3031.3,3031.2,3.2078]
[1763424003104,0.152,3031.0,3030.8,3.2078]
[1763424003304,0.2343,3030.9,3030.8,3.2078]
[1763424003510,0.2343,3030.9,3030.8,3.21205233]
[1763424003818,0.00491718,3031.2,3030.8,3.21205233]
[1763424004204,0.2343,3030.9,3030.8,3.21205233]
[1763424004512,3.4421,3030.9,3029.9,3.2078]
[1763424005598,0.3863,3030.0,3029.9,0.00359118]
[1763424005800,0.3904402,3030.0,3029.9,0.00359118]
[1763424006312,0.1561402,3030.0,3029.9,0.00359118]
[1763424007216,0.0041402,3030.0,3029.9,3.21139118]
[1763424007517,0.152,3030.5,3029.9,3.21139118]
[1763424008415,0.15552203,3030.5,3029.9,3.21139118]
[1763424008606,0.152,3030.0,3029.9,0.00359118]
[1763424009013,0.3863,3030.0,3029.9,0.00359118]
[1763424012516,0.2343,3029.1,3029.0,3.2078]
[1763424012711,0.152,3029.0,3028.6,3.2078]
[1763424013113,0.152,3029.5,3028.6,3.2078]
[1763424013317,3.3598,3029.5,3028.6,3.2078]
[1763424013613,0.00494576,3029.4,3028.7,0.00494576]
[1763424015421,0.152,3029.0,3028.7,0.00494576]
[1763424015622,0.2343,3028.8,3028.7,0.00494576]
[1763424015831,0.00494576,3029.4,3028.7,0.00494576]
[1763424017220,0.00494576,3029.4,3028.7,0.27184457]
[1763424017522,0.152,3029.0,3028.7,0.27184457]
[1763424018523,0.00494576,3029.4,3028.7,0.27184457]
[1763424018829,0.00494576,3029.4,3029.0,3.2078]
[1763424023525,4.576e-05,3029.4,3029.0,3.2078]
[1763424024421,4.576e-05,3029.4,3029.0,9.2078]
[1763424024624,4.576e-05,3029.4,3029.1,3.3008]
[1763424025022,4.576e-05,3029.4,3029.2,3.3008]
[1763424025221,4.576e-05,3029.4,3029.1,3.3008]
[1763424025617,4.576e-05,3029.4,3029.2,3.3008]
[1763424025824,4.576e-05,3029.4,3029.0,5.5436627]
[1763424026028,4.576e-05,3029.4,3029.1,3.3008]
[1763424026332,4.576e-05,3029.4,3029.0,5.5436627]
[1763424026530,4.576e-05,3029.4,3029.0,11.5186627]
[1763424027326,4.576e-05,3029.4,3029.1,2.3358627]
[1763424029521,4.576e-05,3029.4,3029.0,13.5686627]
[1763424029720,4.576e-05,3029.4,3029.0,3.2078]
[1763424030031,0.2322,3029.1,3029.0,3.2078]
[1763424030227,0.1419,3029.0,3028.7,0.27184457]
[1763424030530,0.2322,3028.8,3028.7,0.27184457]
[1763424030725,0.1419,3029.0,3028.7,0.27184457]
[1763424031131,0.2322,3028.8,3028.7,0.27184457]
[1763424031325,0.1419,3029.0,3028.7,0.27184457]
[1763424033726,0.2322,3028.8,3028.7,0.27184457]
[1763424034530,0.1419,3029.0,3028.7,0.27184457]
[1763424035231,0.2322,3028.8,3028.7,0.27184457]
[1763424039233,0.1419,3029.0,3028.7,2.60770727]
[1763424039536,4.576e-05,3029.4,3028.8,2.3358627]
[1763424039935,0.1419,3029.0,3028.8,2.3358627]
[1763424040324,4.576e-05,3029.4,3028.7,0.27184457]
[1763424040540,4.576e-05,3029.4,3029.3,3.2078]
[1763424040926,0.152,3030.0,3029.3,13.57608919]
[1763424041234,0.15552203,3030.5,3029.7,5.55508919]
[1763424041623,0.15552203,3030.5,3030.2,3.2078]
[1763424043335,0.14542203,3030.5,3030.2,3.2078]
[1763424043536,0.14542203,3030.5,3030.2,5.55508919]
[1763424043929,0.14542203,3030.5,3030.2,3.2078]
[1763424044130,0.00352203,3030.5,3030.2,3.2078]
[1763424044737,0.14542203,3030.5,3030.2,3.2078]
[1763424045032,0.14542203,3030.5,3030.2,5.55508919]
[1763424045338,0.14542203,3030.5,3030.2,3.2078]
[1763424047439,0.2322,3030.3,3030.2,3.2078]
[1763424047634,0.2322,3029.9,3029.8,3.2078]
[1763424048234,0.1419,3029.5,3029.4,3.2078]
[1763424048434,0.3741,3029.5,3029.4,3.2078]
[1763424048934,0.1419,3029.5,3029.4,3.2078]
[1763424049246,0.1419,3030.0,3029.4,3.2078]
[1763424052143,0.1419,3029.5,3029.4,3.2078]
[1763424052845,0.3741,3029.5,3029.4,3.2078]
[1763424053747,0.1419,3029.5,3029.4,3.2078]
[1763424054552,0.3741,3029.5,3029.4,3.2078]
[1763424054739,0.1419,3029.5,3029.4,3.2078]
[1763424054940,0.3741,3029.5,3029.4,3.2078]
[1763424057152,0.1419,3029.5,3029.4,3.2078]
[1763424058152,0.14542203,3030.5,3029.4,3.2078]
[1763424058350,0.00352203,3030.5,3030.4,3.2078]
[1763424058650,0.38722203,3030.5,3030.4,3.2078]
[1763424059047,6.38722203,3030.5,3030.4,3.2078]
[1763424059745,6.38722203,3030.5,3030.4,2.4472]
[1763424060449,0.2379,3029.9,3029.3,3.2078]
[1763424060753,0.2379,3029.4,3029.3,3.2078]
[1763424061147,0.1458,3030.0,3029.3,3.2078]
[1763424061756,0.68104,3030.0,3029.3,3.2078]
[1763424062160,0.1458,3030.0,3029.3,3.2078]
[1763424063454,0.2379,3029.4,3028.9,3.2078]
[1763424063653,0.2379,3029.0,3028.9,3.2078]
[1763424066358,0.3837,3029.0,3028.9,3.2078]
[1763424066658,0.77335,3028.8,3028.7,0.00494576]
[1763424067162,6.77335,3028.8,3028.7,0.00494576]
[1763424067554,0.2379,3027.7,3027.6,3.47433368]
[1763424067760,0.2379,3027.7,3027.2,3.2078]
[1763424068262,0.1458,3028.0,3026.9,1.0]
[1763424068263,0.2379,3027.2,3027.1,0.26443318]
[1763424068464,0.328,3027.0,3026.9,1.0]
[1763424068667,3.210862,3027.0,3026.6,0.00495433]
[1763424069162,3.210862,3027.0,3026.0,3.3559]
[1763424069356,3.2078,3026.4,3026.0,3.3559]
[1763424069559,3.2078,3026.4,3026.0,3.35831572]
[1763424069756,3.210862,3027.0,3026.0,3.35831572]
[1763424070272,3.2078,3026.6,3026.2,0.00495433]
[1763424071760,3.2078,3026.6,3026.5,0.2454]
[1763424071960,3.210862,3027.0,3026.5,0.2454]
[1763424072456,3.210862,3027.0,3026.9,0.2454]
[1763424072855,0.00495433,3027.3,3026.9,0.2454]
[1763424073056,0.00495433,3027.3,3027.2,0.2454]
[1763424073956,0.00839531,3027.3,3027.2,0.2454]
[1763424074153,3.2078,3027.5,3027.4,0.2454]
[1763424074462,3.2078,3028.1,3027.4,3.4532]
[1763424075262,3.21645439,3028.1,3027.4,3.4532]
[1763424075864,0.2379,3027.5,3027.0,3.3559]
[1763424076059,0.2379,3027.1,3027.0,3.2078]
[1763424077163,3.2078,3027.7,3027.0,3.6013]
[1763424077667,3.21645439,3028.1,3027.6,0.3935]
[1763424078463,3.21645439,3028.1,3028.0,0.2454]
[1763424078868,0.00865439,3028.1,3028.0,0.2454]
[1763424079561,0.00865439,3028.1,3027.9,3.2078]
[1763424080156,0.00865439,3028.1,3027.7,0.00495433]
[1763424081559,3.21645439,3028.1,3027.7,0.00495433]
[1763424081760,0.00865439,3028.1,3027.7,0.00495433]
[1763424082169,3.21645439,3028.1,3027.7,0.00495433]
[1763424083070,3.21645439,3028.1,3028.0,0.2293]
[1763424085376,0.00865439,3028.1,3028.0,0.2293]
[1763424086075,0.2441,3027.8,3027.7,0.00495433]
[1763424086877,0.77978,3027.8,3027.7,0.00495433]
[1763424087068,0.2441,3027.8,3027.7,0.00495433]
[1763424087266,0.2396,3027.3,3027.2,3.2078]
[1763424088276,0.2396,3027.3,3026.9,0.00495433]
[1763424088477,0.2396,3027.3,3027.0,0.1387]
[1763424088977,3.2078,3027.7,3027.2,0.2468]
[1763424089472,0.2396,3027.3,3027.0,0.1387]
[1763424089667,0.2396,3027.3,3026.9,0.00495433]
[1763424091577,0.2396,3027.0,3026.9,0.00495433]
[1763424093779,0.60512,3027.6,3026.9,0.00495433]
[1763424094171,0.0694,3027.6,3027.0,0.1387]
[1763424094371,0.81566553,3027.6,3027.0,0.1387]
[1763424095773,3.21645439,3028.1,3027.5,0.3855]
[1763424095973,0.81597866,3028.0,3027.5,0.3855]
[1763424096473,0.00865439,3028.1,3028.0,0.3855]
[1763424101377,0.24825439,3028.1,3028.0,0.1387]
[1763424101983,3.45605439,3028.1,3028.0,0.1387]
[1763424102685,0.00865439,3028.1,3028.0,0.3855]
[1763424104686,3.21645439,3028.1,3028.0,0.3855]
[1763424108793,3.45605439,3028.1,3028.0,0.3855]
[1763424110495,3.45605439,3028.1,3027.5,0.1387]
[1763424110699,3.45605439,3028.1,3027.3,3.2078]
[1763424110700,0.2396,3027.4,3027.3,3.2078]
[1763424111102,0.2396,3027.0,3026.9,0.00495433]
[1763424111801,3.2078,3027.5,3027.0,0.1387]
[1763424112200,0.2396,3027.1,3027.0,0.1387]
[1763424113097,3.2078,3027.5,3027.4,0.2468]
[1763424113295,3.2078,3027.9,3027.5,0.1387]
[1763424115905,3.2078,3027.9,3027.8,0.2468]
[1763424116105,0.00865439,3028.1,3027.8,0.2468]
[1763424116301,0.00865439,3028.1,3028.0,0.1387]
[1763424116504,0.00865439,3028.1,3028.0,0.3855]
[1763424120114,0.24825439,3028.1,3028.0,0.3855]
[1763424120620,15.3637663,3038.7,3028.5,0.1512]
[1763424120621,3.2078,3029.0,3028.5,0.1512]
[1763424121114,3.4455,3028.6,3028.0,3.3465]
[1763424121633,0.2377,3028.1,3028.0,3.35486608]
[1763424121816,3.75162243,3028.6,3028.0,3.58756608]
[1763424122313,3.21608243,3028.6,3028.0,3.58756608]
[1763424122812,0.2377,3028.1,3028.0,3.58756608]
[1763424123018,0.2377,3028.1,3028.0,3.35486608]
[1763424123215,3.21608243,3028.6,3028.0,3.58756608]
[1763424124217,0.81013362,3028.5,3028.0,3.58756608]
[1763424124618,3.21608243,3028.6,3028.0,3.58756608]
[1763424129425,3.21608243,3028.6,3028.5,0.3839]
[1763424130316,0.00828243,3028.6,3028.5,0.3839]
[1763424131325,3.2078,3029.0,3028.9,0.2327]
[1763424131729,3.2078,3029.5,3029.4,0.2327]
[1763424132326,3.21057421,3029.5,3029.4,0.2327]
[1763424133120,0.2377,3029.1,3029.0,0.44807325]
[1763424133321,3.21057421,3029.5,3029.0,0.68077325]
[1763424134130,0.2377,3029.1,3029.0,0.68077325]
[1763424134822,3.21057421,3029.5,3029.0,0.68077325]
[1763424135728,3.21057421,3029.5,3029.4,0.2327]
[1763424135937,0.00277421,3029.5,3029.4,0.2327]
[1763424138630,3.44827421,3029.5,3029.0,0.44807325]
[1763424138933,0.2334,3029.1,3029.0,0.44807325]
[1763424139138,3.21057421,3029.5,3029.0,0.68917325]
[1763424140037,3.21057421,3029.5,3029.4,0.2411]
[1763424140529,3.44397421,3029.5,3029.0,0.44807325]
[1763424141447,0.00495433,3029.8,3029.7,0.2411]
[1763424142436,0.0089709,3029.8,3029.7,0.2411]
[1763424142634,3.2078,3030.8,3030.3,0.2411]
[1763424143534,0.2334,3030.6,3030.5,0.04545697]
[1763424143835,0.2334,3030.6,3030.5,0.18575697]
[1763424144038,3.21048827,3030.8,3030.5,0.42685697]
[1763424144335,0.2334,3030.6,3030.5,0.18575697]
[1763424144553,0.2334,3030.6,3030.5,0.04545697]
[1763424144832,0.76862,3030.4,3030.3,0.00264691]
[1763424145033,3.97642,3030.4,3030.3,0.00264691]
[1763424145640,9.97642,3030.4,3030.3,4.691e-05]
[1763424145832,0.2334,3030.0,3029.9,3.2078]
[1763424146037,0.2334,3029.6,3029.2,3.2078]
[1763424146237,3.4412,3029.6,3029.2,3.2078]
[1763424146440,0.2334,3029.3,3029.2,3.2078]
[1763424146643,0.2334,3028.6,3028.5,0.1403]
[1763424146835,0.2334,3028.6,3028.5,0.44222722]
[1763424147144,0.23652284,3028.6,3028.5,0.14998747]
[1763424147347,0.23652284,3028.6,3028.5,0.00378747]
[1763424148443,0.77206284,3028.6,3028.5,0.00378747]
[1763424148638,0.00312284,3028.6,3028.0,0.1462]
[1763424148834,0.2384,3028.0,3027.9,3.2078]
[1763424149538,3.2078,3028.5,3027.9,3.45359071]
[1763424149745,3.2078,3028.5,3028.0,0.1462]
[1763424150136,0.2384,3028.1,3027.9,3.21069071]
[1763424151046,0.2384,3028.1,3027.9,3.51173444]
[1763424151442,3.2078,3028.5,3028.0,0.3891]
[1763424152246,3.2078,3028.5,3028.4,0.2429]
[1763424152446,3.2078,3028.5,3028.0,0.1462]
[1763424152836,0.2384,3028.0,3027.9,3.21069071]
[1763424153038,0.2384,3028.0,3027.9,0.00289071]
[1763424153441,0.53559,3028.4,3028.0,0.1462]
[1763424153950,0.2384,3028.1,3028.0,0.1462]
[1763424154141,3.2078,3028.5,3028.0,0.3891]
[1763424156852,3.74336,3028.5,3028.0,0.3891]
[1763424157054,0.2384,3028.0,3027.9,0.00289071]
[1763424159951,3.2078,3028.1,3027.0,0.1403]
[1763424160252,3.2078,3027.4,3027.0,0.1403]
[1763424160843,3.2078,3027.4,3027.0,0.14274087]
[1763424161952,3.2078,3027.8,3027.7,0.2429]
[1763424162148,3.4462,3027.8,3027.5,0.1462]
[1763424162459,3.2078,3027.8,3027.5,0.3891]
[1763424162659,3.2078,3027.8,3027.7,0.2429]
[1763424163550,3.2078,3028.2,3027.7,0.2429]
[1763424164549,0.00312284,3028.6,3028.5,0.3891]
[1763424165352,3.2078,3029.5,3029.0,0.1462]
[1763424166353,3.2104597,3029.5,3029.0,0.1462]
[1763424167862,3.2104597,3029.5,3029.4,0.2429]
[1763424168162,3.2104597,3029.5,3029.4,0.24551956]
[1763424169959,0.0026597,3029.5,3029.4,0.24551956]
[1763424172762,0.0026597,3029.5,3029.4,0.29097653]
[1763424173370,0.2410597,3029.5,3029.4,0.04807653]
[1763424175163,0.0026597,3029.5,3029.4,0.29097653]
[1763424175467,0.2410597,3029.5,3029.4,0.04807653]
[1763424176066,0.2410597,3029.5,3028.9,0.00495433]
[1763424176067,0.2031,3029.0,3028.9,0.00495433]
[1763424176268,0.83452,3029.0,3028.9,0.00495433]
[1763424176474,0.2031,3028.7,3028.6,3.2078]
[1763424177070,0.2031,3028.7,3028.6,3.21033944]
[1763424178565,3.4109,3028.7,3028.6,0.00253944]
[1763424178966,0.1931,3028.1,3028.0,3.354]
[1763424179168,0.1931,3027.7,3027.6,3.2078]
[1763424179477,3.74334,3028.3,3027.6,3.4485]
[1763424180076,3.21275433,3028.3,3028.0,0.1492]
[1763424180270,3.21275433,3028.3,3028.2,0.2407]
[1763424180465,0.00495433,3028.3,3028.2,0.2407]
[1763424180970,3.4059,3029.1,3028.5,0.1492]
[1763424182162,3.41085433,3029.1,3029.0,0.1492]
[1763424182572,3.41085433,3029.1,3028.5,0.1492]
[1763424182773,0.00495433,3029.1,3029.0,0.3899]
[1763424183575,0.20305433,3029.1,3028.5,0.1492]
[1763424184680,0.1981,3028.6,3028.5,0.1492]
[1763424185076,3.2078,3028.9,3028.5,0.3899]
[1763424185382,0.00495433,3029.1,3029.0,0.1492]
[1763424185575,0.00495433,3029.1,3029.0,0.3899]
[1763424186490,0.00495433,3029.1,3029.0,6.3899]
[1763424187077,3.2078,3029.3,3029.2,0.2407]
[1763424187483,0.0026597,3029.5,3029.4,0.2407]
[1763424188491,0.00495433,3029.8,3029.7,0.2407]
[1763424189486,0.00801556,3029.8,3029.7,0.2407]
[1763424189991,0.00801556,3029.8,3029.7,0.28615697]
[1763424190290,0.21371556,3029.8,3029.7,0.04545697]
[1763424191589,0.00801556,3029.8,3029.7,0.28615697]
[1763424193297,0.21371556,3029.8,3029.7,0.04545697]
[1763424193791,3.95679556,3029.8,3029.7,0.04545697]
[1763424194495,3.42151556,3029.8,3029.7,0.04545697]
[1763424194695,3.95679556,3029.8,3029.7,0.04545697]
[1763424195297,3.42151556,3029.8,3029.7,0.04545697]
[1763424195496,3.95679556,3029.8,3029.7,0.04545697]
[1763424195701,0.1602,3029.2,3029.1,0.00495433]
[1763424201290,3.2078,3029.4,3029.1,0.25815433]
[1763424202098,0.1598,3029.2,3029.1,0.00495433]
[1763424205902,0.1598,3029.2,3029.1,0.25815433]
[1763424206098,3.2078,3029.4,3029.3,0.2532]
[1763424206690,3.2078,3029.4,3029.1,0.00495433]
[1763424206691,3.21581556,3029.8,3029.5,0.1428]
[1763424206896,3.21581556,3029.8,3029.7,0.2532]
[1763424208112,3.37581556,3029.8,3029.7,0.2532]
[1763424208411,0.16,3029.6,3029.5,0.1428]
[1763424208599,0.16,3029.6,3029.1,0.00495433]
[1763424208804,3.2078,3029.7,3029.1,0.25165433]
[1763424208998,0.16,3029.6,3029.5,0.1503]
[1763424209706,0.16,3029.6,3029.1,0.00495433]
[1763424209707,0.16,3029.2,3029.1,0.00495433]
[1763424209895,3.2078,3029.7,3029.1,0.00495433]
[1763424209896,3.2078,3029.7,3029.1,0.25165433]
[1763424211307,0.16,3029.6,3029.5,0.397]
[1763424211510,3.2078,3029.7,3029.6,0.2467]
[1763424211808,0.16,3029.6,3029.5,0.1503]
[1763424213103,0.16,3029.2,3029.1,0.00495433]
[1763424213405,0.16,3029.2,3029.1,0.25165433]
[1763424213608,3.2078,3029.7,3029.1,0.25165433]
[1763424213797,3.2078,3029.7,3029.6,0.2467]
[1763424213993,0.16,3029.6,3029.5,0.397]
[1763424214499,3.2078,3029.7,3029.6,0.2467]
[1763424215008,3.3678,3029.7,3029.6,0.2467]
[1763424215409,3.2078,3029.7,3029.6,0.2467]
[1763424216509,0.00801556,3029.8,3029.7,0.2467]
[1763424216910,3.2078,3030.5,3030.4,0.2467]
[1763424217311,3.2078,3031.0,3030.9,0.2467]
[1763424217504,3.3678,3031.0,3030.5,0.1503]
[1763424217706,3.2078,3030.6,3030.1,3.4545]
[1763424217905,0.0042124,3030.6,3030.5,0.1503]
[1763424218105,0.0042124,3030.6,3030.5,0.397]
[1763424218309,0.16,3030.2,3030.1,0.00397754]
[1763424218510,3.2120124,3030.6,3030.1,0.25067754]
[1763424218701,0.1187124,3030.6,3030.5,0.397]
[1763424218908,0.1187124,3030.6,3030.5,0.1503]
[1763424219216,3.3265124,3030.6,3030.1,3.21177754]
[1763424219404,3.2120124,3030.6,3030.1,3.45847754]
[1763424220304,0.1145,3030.2,3030.1,3.45847754]
[1763424220712,3.2120124,3030.6,3030.1,3.45847754]
[1763424221814,3.2120124,3030.6,3030.5,0.1503]
[1763424221815,3.3265124,3030.6,3030.5,0.1503]
[1763424222317,0.0042124,3030.6,3030.5,0.397]
[1763424223015,0.0042124,3030.6,3030.5,3.6048]
[1763424223210,0.1187124,3030.6,3030.5,0.1503]
[1763424223412,0.1145,3030.2,3030.1,0.00397754]
[1763424223611,0.0042124,3030.6,3030.5,0.1503]
[1763424223816,0.1187124,3030.6,3030.5,0.1503]
[1763424224516,0.1187124,3030.6,3030.1,0.00397754]
[1763424224717,0.1145,3030.2,3030.1,0.00397754]
[1763424225708,3.3223,3030.2,3030.0,0.00495433]
[1763424225919,0.1106,3029.6,3029.5,3.3581]
[1763424226311,3.2078,3030.2,3029.5,3.92803526]
[1763424226917,3.2078,3030.2,3029.5,3.93543453]
[1763424227322,3.2078,3030.2,3030.0,0.1503]
[1763424227712,0.1106,3030.1,3030.0,0.1503]
[1763424229519,0.53515,3030.5,3030.0,0.397]
[1763424229710,0.0042124,3030.6,3030.5,0.397]
[1763424230611,0.0042124,3030.6,3030.5,0.44245697]
[1763424231115,0.1148124,3030.6,3030.5,0.44245697]
[1763424231317,3.3226124,3030.6,3030.5,0.04545697]
[1763424232117,3.8577424,3030.6,3030.5,0.04545697]
[1763424232522,3.3226124,3030.6,3030.5,0.04545697]
[1763424232820,3.8577424,3030.6,3030.5,0.04545697]
[1763424233426,0.1106,3029.9,3029.5,0.48093453]
[1763424233813,3.2078,3030.1,3029.5,0.48093453]
[1763424234012,3.2078,3030.1,3030.0,0.1503]
[1763424234308,3.2078,3030.1,3030.0,0.397]
[1763424234814,3.3184,3030.1,3029.5,0.15769927]
[1763424235009,4.38696664,3031.4,3031.2,0.2467]
[1763424235215,3.2078,3031.8,3031.6,0.2467]
[1763424235719,0.07603559,3031.9,3031.6,0.2467]
[1763424236112,0.07904449,3031.9,3031.6,0.2467]
[1763424239027,0.1153,3031.5,3031.4,0.00495433]
[1763424241124,3.2078,3031.8,3031.5,0.1484]
[1763424241328,3.74272,3031.8,3031.5,0.1484]
[1763424241519,3.2078,3031.8,3031.5,0.1484]
[1763424241718,0.1153,3031.6,3031.5,0.1484]
[1763424242323,0.1153,3031.6,3031.5,3.3562]
[1763424242523,0.1153,3031.5,3031.4,0.00495433]
[1763424243029,0.65027,3031.5,3031.4,0.00495433]
[1763424243329,0.1104,3030.8,3030.7,3.2078]
[1763424243523,3.2078,3031.3,3030.7,3.2078]
[1763424243926,3.74283,3031.3,3030.7,3.2078]
[1763424244229,3.74283,3031.3,3030.7,3.21275433]
[1763424244829,0.53503,3031.2,3030.7,3.21275433]
[1763424245233,3.74281,3031.3,3030.7,3.21275433]
[1763424245722,3.2078,3031.3,3030.7,3.21275433]
[1763424246033,3.2078,3031.3,3031.0,0.1484]
[1763424246327,0.6455,3030.8,3030.7,0.00495433]
[1763424246635,0.1104,3030.4,3030.3,3.2078]
[1763424246834,0.1104,3030.1,3029.8,3.2078]
[1763424247435,0.00495433,3030.3,3030.2,0.2387]
[1763424247639,0.00495433,3030.3,3030.0,0.1484]
[1763424248936,3.3182,3030.1,3030.0,0.1484]
[1763424249143,0.64569,3029.7,3029.6,0.00495433]
[1763424249337,0.64926793,3029.7,3029.6,0.00495433]
[1763424249842,3.85706793,3029.7,3029.6,0.00495433]
[1763424250242,3.32177793,3029.7,3029.6,0.00495433]
[1763424250641,3.85706793,3029.7,3029.6,0.00495433]
[1763424251443,3.32177793,3029.7,3029.6,0.00495433]
[1763424251837,3.85706793,3029.7,3029.6,0.00495433]
[1763424252042,0.53539,3029.2,3028.5,3.3562]
[1763424252237,3.74319,3029.2,3028.5,3.3562]
[1763424252543,3.74318,3029.2,3028.5,3.3562]
[1763424252729,3.74318,3029.2,3028.5,3.67192149]
[1763424252930,3.74318,3029.2,3028.5,3.67955831]
[1763424253133,3.2078,3029.2,3028.5,3.67955831]
[1763424253334,0.5354,3029.1,3028.5,3.67955831]
[1763424253635,3.74318,3029.2,3028.5,3.67955831]
[1763424253835,3.2078,3029.6,3029.0,0.1484]
[1763424254038,0.53533,3029.5,3029.0,0.1484]
[1763424254346,3.2078,3029.6,3029.5,0.3871]
[1763424256355,0.00495433,3030.3,3029.9,0.2387]
[1763424256538,0.00495433,3030.3,3030.2,0.2387]
[1763424257340,0.00810415,3030.3,3030.2,0.2387]
[1763424259839,0.2439,3030.0,3029.9,3.2078]
[1763424260339,0.00810415,3030.3,3030.2,0.24]
[1763424260539,0.25200415,3030.3,3029.9,3.2078]
[1763424261540,0.00810415,3030.3,3030.2,0.24]
[1763424264043,3.2078,3031.2,3031.1,0.24]
[1763424264444,3.4517,3031.2,3030.6,3.2078]
[1763424265052,3.45916589,3031.2,3030.6,3.21682098]
[1763424265750,3.45916589,3031.2,3030.6,0.00902098]
[1763424265751,0.2439,3030.7,3030.6,0.00902098]
[1763424267155,3.21526589,3031.2,3030.6,3.45682098]
[1763424269251,0.00746589,3031.2,3031.1,3.4474]
[1763424272656,0.78118,3030.9,3030.8,3.2078]
[1763424272954,0.2461,3030.9,3030.8,3.2078]
[1763424274051,0.2461,3030.7,3030.6,0.00902098]
[1763424274853,0.78122,3030.7,3030.6,0.00902098]
[1763424275358,0.2461,3030.7,3030.6,0.00902098]
[1763424275758,0.78122,3030.7,3030.6,0.00902098]
[1763424276546,0.2461,3030.7,3030.6,0.00902098]
[1763424278057,0.78122,3030.7,3030.6,0.00902098]
[1763424279261,0.2461,3030.7,3030.6,0.00902098]
[1763424279561,0.78122,3030.7,3030.6,0.00902098]
[1763424280457,0.2461,3030.7,3030.6,0.00902098]
[1763424280660,0.78122,3030.7,3030.6,0.00902098]
[1763424280962,0.2461,3030.7,3030.6,0.00902098]
[1763424281457,0.78122,3030.7,3030.6,0.00902098]
[1763424281756,3.98902,3030.7,3030.6,0.00902098]
[1763424282560,0.2461,3030.7,3030.6,0.00902098]
[1763424282961,0.2461,3030.7,3030.6,0.24862098]
[1763424283959,0.78122,3030.7,3030.6,0.00902098]
[1763424284163,0.2461,3030.7,3030.6,0.00902098]
[1763424286057,0.78122,3030.7,3030.6,0.00902098]
[1763424286562,3.98902,3030.7,3030.6,0.00902098]
[1763424286749,4.79110348,3030.7,3030.6,0.00902098]
[1763424287562,1.58330348,3030.7,3030.6,0.00902098]
[1763424288450,0.2461,3030.7,3030.6,0.00902098]
[1763424288860,1.04822604,3030.7,3030.6,0.00902098]
[1763424289055,0.2461,3030.7,3030.6,0.00902098]
[1763424290560,0.152,3031.0,3030.6,0.24862098]
[1763424290756,1.04825265,3031.0,3030.9,0.2396]
[1763424290955,0.2461,3031.0,3030.9,0.2396]
[1763424291759,0.3981,3031.0,3030.6,0.00902098]
[1763424291960,0.2461,3030.7,3030.6,0.24862098]
[1763424292355,0.152,3031.0,3030.6,0.24862098]
[1763424293262,0.68708,3031.0,3030.6,0.24862098]
[1763424293465,0.2461,3030.7,3030.6,0.00902098]
[1763424293967,3.98902,3030.7,3030.6,0.00902098]
[1763424295664,3.4539,3030.7,3030.6,0.00902098]
[1763424295864,3.98902,3030.7,3030.6,0.00902098]
[1763424296065,3.4539,3030.7,3030.6,0.00902098]
[1763424296264,3.4539,3030.7,3030.3,3.2078]
[1763424296265,0.78137,3029.8,3029.7,2.34728919]
[1763424296467,0.53533,3029.5,3029.0,4.23875974]
[1763424296661,4.0103478,3029.4,3029.0,0.151]
[1763424296969,0.8025478,3029.3,3029.0,0.151]
[1763424297169,0.53533,3029.5,3029.0,0.151]
[1763424297462,0.82432083,3029.4,3029.0,0.1541243]
[1763424297661,0.53537,3029.3,3029.0,0.1541243]
[1763424297863,0.00495433,3029.6,3029.0,0.1541243]
[1763424298372,0.53536,3029.3,3029.0,0.1541243]
[1763424298572,0.00495433,3029.6,3029.0,0.1541243]
[1763424298867,0.53538,3029.3,3029.0,0.1541243]
[1763424299063,0.00495433,3029.6,3029.0,0.1541243]
[1763424299064,0.53536,3029.4,3029.0,0.1541243]
[1763424299269,0.53533,3029.5,3029.0,0.1541243]
[1763424299469,0.54026433,3029.6,3029.0,0.1541243]
[1763424299668,0.00495433,3029.6,3029.0,0.1541243]
[1763424299871,0.00495433,3029.6,3029.5,0.15]
[1763424300566,0.00495433,3029.6,3029.5,0.4037]
[1763424301963,0.54026433,3029.6,3029.5,0.4037]
[1763424302166,0.00495433,3029.6,3029.5,0.4037]
[1763424302764,4.38634902,3030.6,3030.5,0.15]
[1763424302963,4.03077761,3030.6,3030.5,0.15]
[1763424303271,4.56591761,3030.6,3030.5,0.15]
[1763424303465,4.03077761,3030.6,3030.5,0.15]
[1763424303875,3.2078,3030.6,3030.5,0.4037]
[1763424304273,0.53512,3030.7,3030.5,0.4037]
[1763424304573,0.53513,3030.6,3030.5,0.4037]
[1763424305166,0.00495433,3030.9,3030.5,0.15]
[1763424305373,0.82772497,3030.9,3030.5,0.15]
[1763424305866,0.82772497,3030.9,3030.8,0.2537]
[1763424306076,0.00495433,3030.9,3030.8,0.2537]
[1763424313580,0.00495433,3030.9,3030.7,3.2078]
[1763424314171,0.00495433,3030.9,3030.8,0.2537]
[1763424315876,0.00495433,3030.9,3030.7,3.2078]
[1763424316080,0.5351,3030.8,3030.7,3.2078]
[1763424316579,0.00495433,3030.9,3030.7,3.2078]
[1763424316981,0.5351,3030.8,3030.7,3.2078]
[1763424317486,0.54005433,3030.9,3030.7,3.2078]
[1763424317685,0.5351,3030.8,3030.7,3.2078]
[1763424320090,0.53513,3030.6,3030.5,0.4037]
[1763424320584,0.00495433,3030.9,3030.5,0.4037]
[1763424320790,0.54005433,3030.9,3030.5,0.4037]
[1763424321586,0.00495433,3030.9,3030.8,0.2298]
[1763424321787,0.54003433,3030.9,3030.8,0.2298]
[1763424321988,0.54003433,3030.9,3030.5,0.15]
[1763424322191,0.54003433,3030.9,3030.8,0.2298]
[1763424322482,0.00495433,3030.9,3030.8,0.2298]
[1763424323584,3.74274,3031.8,3031.5,0.1433]
[1763424323790,0.07603559,3031.9,3031.8,0.2298]
[1763424324791,0.07915561,3031.9,3031.8,0.23388475]
[1763424325190,0.00495433,3032.2,3032.1,0.2298]
[1763424325386,0.83147825,3032.9,3032.8,0.2298]